fUST/lending_fUST_20250725
["ID","MTS","AMOUNT","RATE_DAILY","PERIOD"]
[374628016,1753386641353,-533.02,0.00019526,2]
[374628017,1753386641362,-460.0,0.00019526,2]
[374628018,1753386641372,-460.0,0.00019526,2]
[374628019,1753386641382,-416.82546977,0.00019526,2]
[374628020,1753386641391,-460.0,0.00019526,2]
[374628021,1753386641400,-460.0,0.00019526,2]
[374628022,1753386641409,-460.0,0.00019526,2]
[374628023,1753386641419,-647.06,0.00019526,2]
[374628024,1753386641428,-460.0,0.00019526,2]
[374628025,1753386641438,-460.0,0.00019526,2]
[374628026,1753386641451,-307.39370806,0.00019526,2]
[374628027,1753386641460,-665.23,0.00019526,2]
[374628028,1753386641469,-221.90957448,0.00019573,2]
[374628029,1753386641478,-905.71031145,0.00019599,2]
[374628030,1753386641489,-598.93087769,0.00019627,2]
[374628031,1753386641499,-460.0,0.00019627,2]
[374628032,1753386641508,-460.0,0.00019627,2]
[374628033,1753386641517,-151.0,0.00019627,2]
[374628034,1753386641527,-500.0,0.00019627,2]
[374628035,1753386641536,-981.0,0.00019627,2]
[374628036,1753386641545,-246.48917632,0.00019627,2]
[374628037,1753386641555,-151.0,0.00019627,2]
[374628038,1753386641564,-884.0,0.00019627,2]
[374628039,1753386641573,-500.0,0.00019627,2]
[374628040,1753386641582,-151.0,0.00019627,2]
[374628041,1753386641591,-500.0,0.00019627,2]
[374628042,1753386641602,-500.0,0.00019627,2]
[374628043,1753386641611,-500.0,0.00019627,2]
[374628044,1753386641621,-152.05121303,0.00019627,2]
[374628045,1753386641630,-500.0,0.00019627,2]
[374628046,1753386641639,-151.0,0.00019627,2]
[374628047,1753386641649,-151.52218414,0.00019627,2]
[374628048,1753386641658,-154.39491513,0.00019627,2]
[374628049,1753386641667,-151.0,0.00019627,2]
[374628050,1753386641677,-151.0,0.00019627,2]
[374628051,1753386641686,-274.08742551,0.00019627,2]
[374628052,1753386641696,-151.0,0.00019627,2]
[374628053,1753386641706,-151.0,0.00019627,2]
[374628054,1753386641715,-500.0,0.00019627,2]
[374628055,1753386641725,-151.0,0.00019627,2]
[374628056,1753386641734,-151.87870992,0.00019627,2]
[374628057,1753386641743,-500.0,0.00019673,2]
[374628058,1753386641753,-500.0,0.00019673,2]
[374628059,1753386641762,-460.0,0.00019698,2]
[374628060,1753386641771,-460.0,0.00019698,2]
[374628061,1753386641781,-460.0,0.00019698,2]
[374628062,1753386641791,-460.0,0.00019698,2]
[374628063,1753386641800,-460.0,0.00019698,2]
[374628064,1753386641809,-460.0,0.00019698,2]
[374628065,1753386641819,-489.8,0.00019698,2]
[374628066,1753386641828,-560.91,0.00019698,2]
[374628067,1753386641837,-1942.21,0.00019698,2]
[374628068,1753386641848,-7702.21,0.00019698,2]
[374628069,1753386641857,-460.0,0.00019698,2]
[374628070,1753386641867,-460.0,0.00019698,2]
[374628071,1753386641877,-480.78,0.00019698,2]
[374628072,1753386641887,-1730.36,0.00019698,2]
[374628073,1753386641896,-2134.96,0.00019698,2]
[374628074,1753386641906,-460.0,0.00019698,2]
[374628075,1753386641915,-566.66,0.00019698,2]
[374628076,1753386641925,-460.0,0.00019698,2]
[374628077,1753386641934,-460.0,0.00019698,2]
[374628078,1753386641943,-2624.06,0.00019698,2]
[374628079,1753386641953,-460.0,0.00019698,2]
[374628080,1753386641963,-460.0,0.00019699,2]
[374628081,1753386641972,-460.0,0.00019699,2]
[374628082,1753386641982,-460.0,0.00019699,2]
[374628083,1753386641991,-460.0,0.00019699,2]
[374628084,1753386642002,-460.0,0.00019699,2]
[374628085,1753386642011,-515.99,0.00019699,2]
[374628086,1753386642021,-460.0,0.00019699,2]
[374628087,1753386642031,-460.0,0.00019699,2]
[374628088,1753386642041,-1712.6,0.00019699,2]
[374628089,1753386642051,-1728.48,0.00019699,2]
[374628090,1753386642061,-616.1,0.00019699,2]
[374628091,1753386642071,-460.0,0.00019699,2]
[374628092,1753386642080,-460.0,0.00019699,2]
[374628093,1753386642090,-460.0,0.00019699,2]
[374628094,1753386642100,-481.25,0.00019699,2]
[374628095,1753386642110,-630.54,0.00019699,2]
[374628096,1753386642119,-977.07,0.00019699,2]
[374628097,1753386642129,-460.0,0.00019699,2]
[374628098,1753386642139,-368.04413581,0.00019699,2]
[374628099,1753386642148,-460.0,0.00019699,2]
[374628100,1753386642157,-460.0,0.00019699,2]
[374628101,1753386642167,-491.16336141,0.00019699,2]
[374628102,1753386642176,-642.33,0.00019699,2]
[374628103,1753386642186,-615.26,0.00019699,2]
[374628105,1753386642195,-460.0,0.00019699,2]
[374628107,1753386642205,-460.0,0.00019699,2]
[374628108,1753386642214,-920.01,0.00019699,2]
[374628109,1753386642223,-460.0,0.00019699,2]
[374628110,1753386642233,-460.0,0.00019699,2]
[374628111,1753386642242,-460.0,0.00019699,2]
[374628112,1753386642251,-460.0,0.00019699,2]
[374628113,1753386642261,-460.0,0.00019699,2]
[374628114,1753386642270,-460.0,0.00019699,2]
[374628115,1753386642279,-460.0,0.00019699,2]
[374628116,1753386642289,-460.0,0.00019699,2]
[374628117,1753386642298,-5070.52,0.00019699,2]
[374628118,1753386642307,-867.88,0.00019699,2]
[374628119,1753386642316,-1647.77,0.00019699,2]
[374628120,1753386642327,-929.0,0.00019699,2]
[374628121,1753386642337,-460.0,0.00019699,2]
[374628122,1753386642346,-10607.21166386,0.000197,2]
[374628123,1753386642356,-460.0,0.000197,2]
[374628124,1753386642365,-460.0,0.000197,2]
[374628125,1753386642375,-231.32880626,0.000197,2]
[374628126,1753386642384,-460.0,0.000197,2]
[374628129,1753386642394,-460.0,0.000197,2]
[374628130,1753386642403,-460.0,0.000197,2]
[374628131,1753386642413,-460.0,0.000197,2]
[374628132,1753386642422,-460.0,0.000197,2]
[374628133,1753386642432,-460.0,0.000197,2]
[374628134,1753386642443,-290.78393118,0.000197,2]
[374628135,1753386642456,-553.11747028,0.000197,2]
[374628136,1753386642466,-460.0,0.000197,2]
[374628138,1753386642475,-585.62,0.000197,2]
[374628140,1753386642484,-460.0,0.000197,2]
[374628142,1753386642494,-597.54313279,0.000197,2]
[374628144,1753386642503,-460.0,0.000197,2]
[374628146,1753386642513,-460.0,0.000197,2]
[374628148,1753386642522,-460.0,0.000197,2]
[374628150,1753386642532,-460.0,0.000197,2]
[374628152,1753386642542,-460.0,0.000197,2]
[374628154,1753386642552,-460.0,0.000197,2]
[374628156,1753386642561,-460.0,0.000197,2]
[374628157,1753386642570,-460.0,0.000197,2]
[374628158,1753386642579,-406.70900576,0.000197,2]
[374628159,1753386642588,-460.0,0.000197,2]
[374628160,1753386642599,-460.0,0.000197,2]
[374628161,1753386642608,-589.58,0.000197,2]
[374628162,1753386642618,-460.0,0.000197,2]
[374628164,1753386642627,-460.0,0.000197,2]
[374628165,1753386642637,-460.0,0.000197,2]
[374628166,1753386642647,-460.0,0.000197,2]
[374628167,1753386642656,-460.0,0.000197,2]
[374628168,1753386642666,-460.0,0.000197,2]
[374628169,1753386642675,-488.77,0.000197,2]
[374628170,1753386642685,-764.54,0.000197,2]
[374628171,1753386642694,-636.22,0.000197,2]
[374628172,1753386642703,-460.0,0.000197,2]
[374628173,1753386642712,-460.0,0.000197,2]
[374628174,1753386642721,-1522.22,0.000197,2]
[374628175,1753386642730,-460.0,0.000197,2]
[374628177,1753386642845,-460.0,0.000197,2]
[374628179,1753386642855,-460.0,0.000197,2]
[374628181,1753386642865,-460.0,0.000197,2]
[374628183,1753386642875,-460.0,0.000197,2]
[374628185,1753386642884,-2832.84,0.000197,2]
[374628187,1753386642893,-773.6,0.000197,2]
[374628190,1753386642903,-460.0,0.000197,2]
[374628193,1753386642913,-460.0,0.000197,2]
[374628196,1753386642921,-460.0,0.000197,2]
[374628199,1753386642930,-460.0,0.000197,2]
[374628202,1753386642939,-460.0,0.000197,2]
[374628204,1753386642949,-258.98,0.000197,2]
[374628206,1753386642958,-460.0,0.000197,2]
[374628208,1753386642966,-522.65,0.000197,2]
[374628210,1753386642976,-825.95,0.000197,2]
[374628212,1753386642985,-1705.29,0.000197,2]
[374628214,1753386642994,-460.0,0.000197,2]
[374628216,1753386643004,-460.0,0.000197,2]
[374628218,1753386643013,-2227.14,0.000197,2]
[374628220,1753386643022,-657.72,0.000197,2]
[374628222,1753386643031,-460.0,0.000197,2]
[374628224,1753386643041,-460.0,0.000197,2]
[374628226,1753386643052,-816.03,0.000197,2]
[374628228,1753386643062,-464.35056706,0.000197,2]
[374628230,1753386643074,-460.0,0.000197,2]
[374628232,1753386643084,-460.0,0.000197,2]
[374628234,1753386643093,-3063.8,0.000197,2]
[374628236,1753386643103,-460.0,0.000197,2]
[374628237,1753386643113,-460.0,0.000197,2]
[374628240,1753386643122,-460.0,0.000197,2]
[374628241,1753386643132,-460.0,0.000197,2]
[374628244,1753386643141,-460.0,0.000197,2]
[374628246,1753386643151,-460.0,0.000197,2]
[374628247,1753386643160,-558.32,0.000197,2]
[374628249,1753386643169,-460.0,0.000197,2]
[374628251,1753386643179,-728.04,0.000197,2]
[374628253,1753386643188,-2244.87,0.000197,2]
[374628255,1753386643198,-549.04,0.000197,2]
[374628257,1753386643207,-1889.32,0.000197,2]
[374628259,1753386643217,-460.0,0.000197,2]
[374628262,1753386643227,-460.0,0.000197,2]
[374628264,1753386643237,-460.0,0.000197,2]
[374628266,1753386643246,-460.0,0.000197,2]
[374628267,1753386643255,-500.0,0.00019773,2]
[374628269,1753386643264,-500.0,0.00019773,2]
[374628271,1753386643274,-528.06012073,0.00019773,2]
[374628274,1753386643284,-500.0,0.00019773,2]
[374628275,1753386643293,-355.55508519,0.00019773,2]
[374628278,1753386643306,-500.0,0.00019773,2]
[374628280,1753386643315,-500.0,0.00019773,2]
[374628282,1753386643325,-500.0,0.00019773,2]
[374628284,1753386643334,-460.0,0.000198,2]
[374628286,1753386643344,-460.0,0.000198,2]
[374628287,1753386643355,-460.0,0.000198,2]
[374628289,1753386643364,-460.0,0.000198,2]
[374628291,1753386643373,-460.0,0.000198,2]
[374628293,1753386643382,-460.0,0.000198,2]
[374628295,1753386643391,-460.0,0.000198,2]
[374628297,1753386643401,-460.0,0.000198,2]
[374628299,1753386643410,-460.0,0.000198,2]
[374628301,1753386643418,-460.0,0.000198,2]
[374628303,1753386643428,-460.0,0.000198,2]
[374628305,1753386643437,-460.0,0.000198,2]
[374628307,1753386643449,-460.0,0.000198,2]
[374628309,1753386643458,-460.0,0.000198,2]
[374628311,1753386643468,-460.0,0.000198,2]
[374628313,1753386643477,-460.0,0.000198,2]
[374628316,1753386643487,-460.0,0.000198,2]
[374628317,1753386643496,-460.0,0.000198,2]
[374628320,1753386643506,-460.0,0.000198,2]
[374628321,1753386643515,-460.0,0.000198,2]
[374628324,1753386643526,-460.0,0.000198,2]
[374628326,1753386643536,-460.0,0.000198,2]
[374628328,1753386643545,-575.58999031,0.000198,2]
[374628330,1753386643555,-460.0,0.000198,2]
[374628331,1753386643564,-188.97474229,0.000198,2]
[374628333,1753386643574,-460.0,0.000198,2]
[374628335,1753386643583,-460.0,0.000198,2]
[374628337,1753386643592,-468.31810975,0.000198,2]
[374628339,1753386643602,-460.0,0.000198,2]
[374628342,1753386643612,-460.0,0.000198,2]
[374628343,1753386643621,-460.0,0.000198,2]
[374628345,1753386643631,-943.03,0.000198,2]
[374628347,1753386643640,-414.05264003,0.000198,2]
[374628349,1753386643649,-460.0,0.000198,2]
[374628351,1753386643658,-460.0,0.000198,2]
[374628353,1753386643667,-460.0,0.000198,2]
[374628355,1753386643676,-460.0,0.000198,2]
[374628357,1753386643685,-560.04779064,0.000198,2]
[374628359,1753386643694,-460.0,0.000198,2]
[374628361,1753386643703,-460.0,0.000198,2]
[374628363,1753386643712,-460.0,0.000198,2]
[374628365,1753386643721,-460.0,0.000198,2]
[374628367,1753386643730,-460.0,0.000198,2]
[374628369,1753386643739,-269.77318877,0.000198,2]
[374628371,1753386643749,-460.0,0.000198,2]
[374628373,1753386643758,-460.0,0.000198,2]
[374628375,1753386643768,-460.0,0.000198,2]
[374628377,1753386643777,-460.0,0.000198,2]
[374628379,1753386643787,-168.40109635,0.000198,2]
[374628381,1753386643796,-460.0,0.000198,2]
[374628383,1753386643806,-460.0,0.000198,2]
[374628385,1753386643815,-460.0,0.000198,2]
[374628387,1753386643825,-460.0,0.000198,2]
[374628389,1753386643838,-460.0,0.000198,2]
[374628391,1753386643847,-460.0,0.000198,2]
[374628393,1753386643856,-460.0,0.000198,2]
[374628395,1753386643865,-460.0,0.000198,2]
[374628397,1753386643875,-460.0,0.000198,2]
[374628399,1753386643885,-842.57,0.000198,2]
[374628401,1753386643894,-460.0,0.000198,2]
[374628404,1753386643905,-460.0,0.000198,2]
[374628406,1753386643922,-460.0,0.000198,2]
[374628407,1753386643932,-460.0,0.000198,2]
[374628410,1753386643941,-460.0,0.000198,2]
[374628412,1753386643951,-460.0,0.000198,2]
[374628414,1753386643960,-460.0,0.000198,2]
[374628416,1753386643970,-460.0,0.000198,2]
[374628417,1753386643980,-460.0,0.000198,2]
[374628420,1753386643990,-533.02,0.000198,2]
[374628421,1753386643999,-460.0,0.000198,2]
[374628423,1753386644008,-267.57021689,0.000198,2]
[374628425,1753386644018,-460.0,0.000198,2]
[374628427,1753386644027,-460.0,0.000198,2]
[374628429,1753386644037,-647.06,0.000198,2]
[374628432,1753386644047,-460.0,0.000198,2]
[374628434,1753386644056,-665.23,0.000198,2]
[374628435,1753386644065,-151.0,0.00019901,2]
[374628437,1753386644076,-500.0,0.00019901,2]
[374628439,1753386644085,-981.0,0.00019901,2]
[374628441,1753386644094,-151.0,0.00019901,2]
[374628443,1753386644105,-884.0,0.00019901,2]
[374628445,1753386644115,-500.0,0.00019901,2]
[374628447,1753386644124,-151.0,0.00019901,2]
[374628449,1753386644134,-500.0,0.00019901,2]
[374628451,1753386644143,-500.0,0.00019901,2]
[374628453,1753386644152,-550.92705688,0.00019901,2]
[374628455,1753386644162,-500.0,0.00019901,2]
[374628457,1753386644171,-151.0,0.00019901,2]
[374628459,1753386644180,-152.54299812,0.00019901,2]
[374628461,1753386644190,-151.0,0.00019901,2]
[374628463,1753386644199,-500.0,0.00019901,2]
[374628465,1753386644208,-151.0,0.00019901,2]
[374628467,1753386644217,-460.0,0.00019972,2]
[374628469,1753386644227,-460.0,0.00019972,2]
[374628471,1753386644236,-460.0,0.00019972,2]
[374628473,1753386644245,-460.0,0.00019972,2]
[374628475,1753386644255,-460.0,0.00019972,2]
[374628477,1753386644264,-489.8,0.00019972,2]
[374628479,1753386644274,-560.91,0.00019972,2]
[374628481,1753386644283,-1942.21,0.00019972,2]
[374628483,1753386644293,-7702.21,0.00019972,2]
[374628485,1753386644303,-460.0,0.00019972,2]
[374628487,1753386644313,-480.78,0.00019972,2]
[374628489,1753386644322,-1730.36,0.00019972,2]
[374628491,1753386644331,-2134.96,0.00019972,2]
[374628493,1753386644341,-460.0,0.00019972,2]
[374628495,1753386644352,-566.66,0.00019972,2]
[374628497,1753386644362,-460.0,0.00019972,2]
[374628499,1753386644371,-2624.06,0.00019972,2]
[374628501,1753386644380,-460.0,0.00019972,2]
[374628503,1753386644390,-515.99,0.00019973,2]
[374628505,1753386644406,-231.39501375,0.00019973,2]
[374628507,1753386644421,-460.0,0.00019973,2]
[374628509,1753386644430,-1712.6,0.00019973,2]
[374628511,1753386644447,-1728.48,0.00019973,2]
[374628513,1753386644469,-616.1,0.00019973,2]
[374628515,1753386644484,-460.0,0.00019973,2]
[374628517,1753386644493,-460.0,0.00019973,2]
[374628519,1753386644502,-460.0,0.00019973,2]
[374628521,1753386644512,-481.25,0.00019973,2]
[374628523,1753386644521,-630.54,0.00019973,2]
[374628525,1753386644531,-977.07,0.00019973,2]
[374628527,1753386644541,-460.0,0.00019973,2]
[374628529,1753386644550,-460.0,0.00019973,2]
[374628531,1753386644560,-460.0,0.00019973,2]
[374628533,1753386644569,-642.33,0.00019973,2]
[374628535,1753386644579,-615.26,0.00019973,2]
[374628537,1753386644588,-460.0,0.00019973,2]
[374628539,1753386644598,-920.01,0.00019973,2]
[374628541,1753386644608,-460.0,0.00019973,2]
[374628543,1753386644617,-460.0,0.00019973,2]
[374628545,1753386644627,-460.0,0.00019973,2]
[374628547,1753386644637,-460.0,0.00019973,2]
[374628549,1753386644646,-460.0,0.00019973,2]
[374628551,1753386644655,-460.0,0.00019973,2]
[374628553,1753386644665,-242.98330462,0.00019973,2]
[374628555,1753386644674,-5070.52,0.00019973,2]
[374628557,1753386644684,-867.88,0.00019973,2]
[374628559,1753386644694,-1647.77,0.00019973,2]
[374628561,1753386644703,-929.0,0.00019973,2]
[374628563,1753386644712,-460.0,0.00019974,2]
[374628565,1753386644721,-460.0,0.00019974,2]
[374628567,1753386644730,-460.0,0.00019974,2]
[374628569,1753386644740,-460.0,0.00019974,2]
[374628571,1753386644749,-460.0,0.00019974,2]
[374628573,1753386644759,-460.0,0.00019974,2]
[374628575,1753386644768,-460.0,0.00019974,2]
[374628577,1753386644777,-585.62,0.00019974,2]
[374628579,1753386644787,-460.0,0.00019974,2]
[374628581,1753386644796,-460.0,0.00019974,2]
[374628583,1753386644805,-460.0,0.00019974,2]
[374628585,1753386644815,-460.0,0.00019974,2]
[374628587,1753386644824,-460.0,0.00019974,2]
[374628589,1753386644833,-460.0,0.00019974,2]
[374628591,1753386644843,-460.0,0.00019974,2]
[374628593,1753386644853,-460.0,0.00019974,2]
[374628595,1753386644863,-460.0,0.00019974,2]
[374628597,1753386644872,-460.0,0.00019974,2]
[374628599,1753386644881,-589.58,0.00019974,2]
[374628601,1753386644891,-460.0,0.00019974,2]
[374628603,1753386644900,-460.0,0.00019974,2]
[374628605,1753386644909,-460.0,0.00019974,2]
[374628607,1753386644919,-460.0,0.00019974,2]
[374628609,1753386644928,-488.77,0.00019974,2]
[374628611,1753386644938,-764.54,0.00019974,2]
[374628613,1753386644947,-636.22,0.00019974,2]
[374628615,1753386644956,-460.0,0.00019974,2]
[374628617,1753386644966,-460.0,0.00019974,2]
[374628619,1753386644975,-1522.22,0.00019974,2]
[374628621,1753386644984,-460.0,0.00019974,2]
[374628623,1753386644993,-460.0,0.00019974,2]
[374628625,1753386645002,-460.0,0.00019974,2]
[374628627,1753386645012,-253.94125201,0.00019974,2]
[374628629,1753386645022,-2832.84,0.00019974,2]
[374628631,1753386645031,-773.6,0.00019974,2]
[374628633,1753386645040,-460.0,0.00019974,2]
[374628635,1753386645049,-460.0,0.00019974,2]
[374628637,1753386645059,-460.0,0.00019974,2]
[374628639,1753386645068,-460.0,0.00019974,2]
[374628641,1753386645077,-460.0,0.00019974,2]
[374628643,1753386645087,-460.0,0.00019974,2]
[374628645,1753386645096,-522.65,0.00019974,2]
[374628646,1753386645106,-825.95,0.00019974,2]
[374628649,1753386645115,-1705.29,0.00019974,2]
[374628650,1753386645125,-460.0,0.00019974,2]
[374628652,1753386645134,-2227.14,0.00019974,2]
[374628654,1753386645143,-657.72,0.00019974,2]
[374628656,1753386645154,-460.0,0.00019974,2]
[374628659,1753386645166,-816.03,0.00019974,2]
[374628661,1753386645175,-460.0,0.00019974,2]
[374628662,1753386645185,-460.0,0.00019974,2]
[374628664,1753386645195,-3063.8,0.00019974,2]
[374628665,1753386645204,-460.0,0.00019974,2]
[374628666,1753386645213,-460.0,0.00019974,2]
[374628667,1753386645222,-460.0,0.00019974,2]
[374628668,1753386645232,-460.0,0.00019974,2]
[374628669,1753386645241,-460.0,0.00019974,2]
[374628671,1753386645251,-558.32,0.00019974,2]
[374628672,1753386645260,-460.0,0.00019974,2]
[374628673,1753386645269,-728.04,0.00019974,2]
[374628674,1753386645287,-2244.87,0.00019974,2]
[374628675,1753386645300,-549.04,0.00019974,2]
[374628678,1753386645310,-1889.32,0.00019974,2]
[374628679,1753386645320,-460.0,0.00019974,2]
[374628680,1753386645329,-214.13485886,0.00019974,2]
[374628681,1753386645475,-460.0,0.00019974,2]
[374628682,1753386645485,-173.6125,0.0002,2]
[374628683,1753386645495,-174.53435214,0.00020055,3]
[374628684,1753386645504,-460.0,0.00020074,2]
[374628685,1753386645513,-460.0,0.00020074,2]
[374628686,1753386645523,-460.0,0.00020074,2]
[374628687,1753386645533,-456.70958115,0.00020074,2]
[374628688,1753386645542,-460.0,0.00020074,2]
[374628689,1753386645551,-460.0,0.00020074,2]
[374628690,1753386645560,-150.11443039,0.00020074,2]
[374628691,1753386645569,-460.0,0.00020074,2]
[374628692,1753386645580,-460.0,0.00020074,2]
[374628693,1753386645589,-460.0,0.00020074,2]
[374628694,1753386645600,-460.0,0.00020074,2]
[374628695,1753386645609,-460.0,0.00020074,2]
[374628696,1753386645618,-460.0,0.00020074,2]
[374628697,1753386645627,-460.0,0.00020074,2]
[374628698,1753386645636,-530.98955196,0.00020074,2]
[374628699,1753386645646,-460.0,0.00020074,2]
[374628700,1753386645655,-460.0,0.00020074,2]
[374628702,1753386645666,-460.0,0.00020074,2]
[374628704,1753386645675,-460.0,0.00020074,2]
[374628706,1753386645684,-460.0,0.00020074,2]
[374628707,1753386645694,-460.0,0.00020074,2]
[374628708,1753386645704,-943.03,0.00020074,2]
[374628709,1753386645714,-460.0,0.00020074,2]
[374628710,1753386645723,-463.47430099,0.00020074,2]
[374628712,1753386645732,-450.02873204,0.00020074,2]
[374628714,1753386645741,-460.0,0.00020074,2]
[374628715,1753386645751,-460.0,0.00020074,2]
[374628716,1753386645760,-460.0,0.00020074,2]
[374628717,1753386645769,-460.0,0.00020074,2]
[374628718,1753386645779,-460.0,0.00020074,2]
[374628720,1753386645788,-460.0,0.00020074,2]
[374628722,1753386645798,-460.0,0.00020074,2]
[374628723,1753386645807,-460.0,0.00020074,2]
[374628724,1753386645817,-460.0,0.00020074,2]
[374628725,1753386645827,-460.0,0.00020074,2]
[374628727,1753386645836,-460.0,0.00020074,2]
[374628728,1753386645845,-460.0,0.00020074,2]
[374628729,1753386645857,-460.0,0.00020074,2]
[374628730,1753386645866,-842.57,0.00020074,2]
[374628731,1753386645875,-460.0,0.00020074,2]
[374628732,1753386645883,-460.0,0.00020074,2]
[374628733,1753386645893,-460.0,0.00020074,2]
[374628734,1753386645902,-460.0,0.00020074,2]
[374628735,1753386645912,-460.0,0.00020074,2]
[374628736,1753386645922,-460.0,0.00020074,2]
[374628737,1753386645931,-460.0,0.00020074,2]
[374628738,1753386645940,-460.0,0.00020074,2]
[374628739,1753386645948,-533.02,0.00020074,2]
[374628740,1753386645957,-460.0,0.00020074,2]
[374628741,1753386645966,-276.23165664,0.00020074,2]
[374628742,1753386645975,-450.0,0.00020074,2]
[374628743,1753386645985,-647.06,0.00020074,2]
[374628744,1753386645995,-460.0,0.00020074,2]
[374628745,1753386646003,-665.23,0.00020074,2]
[374628746,1753386646015,-292.0,0.00020104,2]
[374628747,1753386646026,-500.0,0.00020175,2]
[374628748,1753386646037,-981.0,0.00020175,2]
[374628749,1753386646047,-151.0,0.00020175,2]
[374628750,1753386646057,-884.0,0.00020175,2]
[374628751,1753386646066,-500.0,0.00020175,2]
[374628752,1753386646077,-151.0,0.00020175,2]
[374628753,1753386646087,-374.01323545,0.00020175,2]
[374628754,1753386646097,-500.0,0.00020175,2]
[374628756,1753386646109,-500.0,0.00020175,2]
[374628758,1753386646118,-152.79228163,0.00020175,2]
[374628759,1753386646127,-151.0,0.00020175,2]
[374628760,1753386646136,-500.0,0.00020175,2]
[374628761,1753386646145,-151.0,0.00020175,2]
[374628762,1753386646154,-249.030166,0.00020187,2]
[374628763,1753386646163,-1000.0,0.00020221,2]
[374628764,1753386646171,-500.0,0.00020221,2]
[374628765,1753386646183,-460.0,0.00020246,2]
[374628766,1753386646194,-460.0,0.00020246,2]
[374628767,1753386646203,-460.0,0.00020246,2]
[374628768,1753386646213,-489.8,0.00020246,2]
[374628769,1753386646222,-560.91,0.00020246,2]
[374628770,1753386646231,-1942.21,0.00020246,2]
[374628771,1753386646240,-7702.21,0.00020246,2]
[374628772,1753386646249,-460.0,0.00020246,2]
[374628773,1753386646259,-480.78,0.00020246,2]
[374628774,1753386646269,-1730.36,0.00020246,2]
[374628775,1753386646279,-2134.96,0.00020246,2]
[374628776,1753386646294,-460.0,0.00020246,2]
[374628777,1753386646304,-566.66,0.00020246,2]
[374628778,1753386646319,-460.0,0.00020246,2]
[374628779,1753386646330,-2624.06,0.00020246,2]
[374628780,1753386646341,-460.0,0.00020246,2]
[374628781,1753386646353,-515.99,0.00020247,2]
[374628782,1753386646362,-460.0,0.00020247,2]
[374628783,1753386646372,-1712.6,0.00020247,2]
[374628784,1753386646381,-1728.48,0.00020247,2]
[374628785,1753386646391,-616.1,0.00020247,2]
[374628786,1753386646400,-442.85117061,0.00020247,2]
[374628787,1753386646410,-460.0,0.00020247,2]
[374628788,1753386646419,-460.0,0.00020247,2]
[374628789,1753386646429,-481.25,0.00020247,2]